[Event "Titled Tuesday Blitz September 28 2021"]
[White "Tang, Andrew"]
[Black "Savchenko, Boris"]
[WhiteFideId "2059630"]
[BlackFideId "4147332"]
[WhiteElo "2588"]
[BlackElo "2543"]
[Result "1-0"]
[Round "04"]
[TimeControl "180+1"]
[Date "2021.09.28"]
[WhiteClock "0:00:12"]
[BlackClock "0:00:06"]

1. d4 {[%clk 0:03:00]}  Nf6 {[%clk 0:02:56]} 2. c4 {[%clk 0:03:00]}  g6 {[%clk 0:02:55]} 3. f3 {[%clk 0:03:00]}  d5 {[%clk 0:02:55]} 4. cxd5 {[%clk 0:03:01]}  Nxd5 {[%clk 0:02:56]} 5. e4 {[%clk 0:03:02]}  Nb6 {[%clk 0:02:56]} 6. Nc3 {[%clk 0:03:03]}  Bg7 {[%clk 0:02:56]} 7. Be3 {[%clk 0:03:04]}  Nc6 {[%clk 0:02:55]} 8. d5 {[%clk 0:03:04]}  Ne5 {[%clk 0:02:55]} 9. f4 {[%clk 0:03:05]}  Ng4 {[%clk 0:02:55]} 10. Bb5+ {[%clk 0:02:59]}  Bd7 {[%clk 0:02:55]} 11. Bd4 {[%clk 0:03:00]}  Bxd4 {[%clk 0:02:43]} 12. Qxd4 {[%clk 0:03:01]}  O-O {[%clk 0:02:42]} 13. Be2 {[%clk 0:02:53]}  Nf6 {[%clk 0:02:25]} 14. O-O-O {[%clk 0:02:02]}  c6 {[%clk 0:02:25]} 15. d6 {[%clk 0:02:02]}  exd6 {[%clk 0:02:24]} 16. Qxd6 {[%clk 0:02:03]}  Bg4 {[%clk 0:02:10]} 17. Qe5 {[%clk 0:01:05]}  Nbd7 {[%clk 0:02:08]} 18. Qg5 {[%clk 0:01:05]}  Bxe2 {[%clk 0:01:55]} 19. Ngxe2 {[%clk 0:01:06]}  Qb6 {[%clk 0:01:41]} 20. Kb1 {[%clk 0:00:52]}  Qe3 {[%clk 0:01:37]} 21. Ng3 {[%clk 0:00:51]}  Rfd8 {[%clk 0:01:27]} 22. Nf5 {[%clk 0:00:40]}  Qc5 {[%clk 0:01:23]} 23. e5 {[%clk 0:00:34]}  Nh5 {[%clk 0:01:03]} 24. g4 {[%clk 0:00:27]}  Ng7 {[%clk 0:00:51]} 25. Ne4 {[%clk 0:00:18]}  Qb4 {[%clk 0:00:47]} 26. Ned6 {[%clk 0:00:17]}  gxf5 {[%clk 0:00:34]} 27. gxf5 {[%clk 0:00:17]}  Nf8 {[%clk 0:00:34]} 28. Rhg1 {[%clk 0:00:12]}  Ng6 {[%clk 0:00:35]} 29. fxg6 {[%clk 0:00:12]}  fxg6 {[%clk 0:00:32]} 30. f5 {[%clk 0:00:13]}  Rxd6 {[%clk 0:00:24]} 31. exd6 {[%clk 0:00:14]}  Qe4+ {[%clk 0:00:23]} 32. Ka1 {[%clk 0:00:14]}  Qxf5 {[%clk 0:00:23]} 33. Qe7 {[%clk 0:00:15]}  Qf7 {[%clk 0:00:17]} 34. Rgf1 {[%clk 0:00:15]}  Nf5 {[%clk 0:00:17]} 35. Qc7 {[%clk 0:00:11]}  Qe8 {[%clk 0:00:06]} 36. d7 {[%clk 0:00:11]}  Qd8 {[%clk 0:00:07]} 37. Qxb7 {[%clk 0:00:12]}  c5 {[%clk 0:00:06]} 38. Qxa8 {[%clk 0:00:12]} 1-0


[Site "https://www.chess.com"]

[Event "Titled Tuesday Blitz September 28 2021"]
[White "Tologon tegin, Semetei"]
[Black "Perez Ponsa, Federico"]
[WhiteFideId "13800574"]
[BlackFideId "117927"]
[WhiteElo "2224"]
[BlackElo "2672"]
[Result "1-0"]
[Round "04"]
[TimeControl "180+1"]
[Date "2021.09.28"]
[WhiteClock "0:00:13"]
[BlackClock "0:00:23"]

1. d4 {[%clk 0:03:00]}  Nf6 {[%clk 0:02:53]} 2. c4 {[%clk 0:03:00]}  e6 {[%clk 0:02:54]} 3. Nc3 {[%clk 0:03:00]}  Bb4 {[%clk 0:02:54]} 4. e3 {[%clk 0:03:00]}  O-O {[%clk 0:02:53]} 5. Ne2 {[%clk 0:03:00]}  Re8 {[%clk 0:02:52]} 6. a3 {[%clk 0:02:59]}  Bf8 {[%clk 0:02:53]} 7. Ng3 {[%clk 0:02:55]}  d6 {[%clk 0:02:48]} 8. Bd3 {[%clk 0:02:50]}  Nbd7 {[%clk 0:02:48]} 9. O-O {[%clk 0:02:50]}  e5 {[%clk 0:02:48]} 10. f4 {[%clk 0:02:48]}  exd4 {[%clk 0:02:46]} 11. exd4 {[%clk 0:02:47]}  d5 {[%clk 0:02:46]} 12. c5 {[%clk 0:02:43]}  b6 {[%clk 0:02:43]} 13. b4 {[%clk 0:02:42]}  a5 {[%clk 0:02:38]} 14. Rb1 {[%clk 0:02:15]}  axb4 {[%clk 0:02:38]} 15. axb4 {[%clk 0:02:15]}  bxc5 {[%clk 0:02:38]} 16. bxc5 {[%clk 0:02:16]}  Nxc5 {[%clk 0:02:30]} 17. dxc5 {[%clk 0:02:15]}  Bxc5+ {[%clk 0:02:30]} 18. Kh1 {[%clk 0:02:15]}  Ng4 {[%clk 0:02:31]} 19. Qf3 {[%clk 0:01:29]}  c6 {[%clk 0:02:12]} 20. h3 {[%clk 0:01:17]}  Qh4 {[%clk 0:02:11]} 21. f5 {[%clk 0:00:58]}  Ne5 {[%clk 0:02:06]} 22. Re1 {[%clk 0:00:49]}  Nxf3 {[%clk 0:02:04]} 23. Rxe8+ {[%clk 0:00:48]}  Bf8 {[%clk 0:02:05]} 24. Nce2 {[%clk 0:00:33]}  Nd4 {[%clk 0:01:52]} 25. Bf4 {[%clk 0:00:30]}  Nxe2 {[%clk 0:01:44]} 26. Nxe2 {[%clk 0:00:31]}  Qf6 {[%clk 0:01:30]} 27. Be5 {[%clk 0:00:30]}  Qh6 {[%clk 0:01:11]} 28. Bf4 {[%clk 0:00:23]}  Qh4 {[%clk 0:01:07]} 29. Bd6 {[%clk 0:00:21]}  h5 {[%clk 0:00:31]} 30. Rxf8+ {[%clk 0:00:20]}  Kh7 {[%clk 0:00:31]} 31. f6+ {[%clk 0:00:15]}  Kh6 {[%clk 0:00:31]} 32. Bf4+ {[%clk 0:00:12]}  Qxf4 {[%clk 0:00:22]} 33. Nxf4 {[%clk 0:00:13]}  Kg5 {[%clk 0:00:23]} 34. fxg7 {[%clk 0:00:13]} 1-0


[Site "https://www.chess.com"]

[Event "Titled Tuesday Blitz September 28 2021"]
[White "Topalov, Aleksandar"]
[Black "Atabayev, Maksat"]
[WhiteFideId "925659"]
[BlackFideId "14001101"]
[WhiteElo "2179"]
[BlackElo "2457"]
[Result "0-1"]
[Round "04"]
[TimeControl "180+1"]
[Date "2021.09.28"]
[WhiteClock "0:00:03"]
[BlackClock "0:00:06"]

1. b3 {[%clk 0:02:56]}  Nf6 {[%clk 0:02:44]} 2. Bb2 {[%clk 0:02:55]}  g6 {[%clk 0:02:42]} 3. Bxf6 {[%clk 0:02:55]}  exf6 {[%clk 0:02:43]} 4. c4 {[%clk 0:02:55]}  Bg7 {[%clk 0:02:44]} 5. Nc3 {[%clk 0:02:56]}  f5 {[%clk 0:02:45]} 6. e3 {[%clk 0:02:56]}  O-O {[%clk 0:02:45]} 7. Nge2 {[%clk 0:02:57]}  f4 {[%clk 0:02:46]} 8. Nxf4 {[%clk 0:02:56]}  d6 {[%clk 0:02:43]} 9. Be2 {[%clk 0:02:54]}  Nc6 {[%clk 0:02:42]} 10. d4 {[%clk 0:02:49]}  Ne7 {[%clk 0:02:42]} 11. O-O {[%clk 0:02:48]}  c5 {[%clk 0:02:43]} 12. Nfd5 {[%clk 0:02:42]}  cxd4 {[%clk 0:02:33]} 13. exd4 {[%clk 0:02:37]}  Nc6 {[%clk 0:02:32]} 14. Bg4 {[%clk 0:02:17]}  f5 {[%clk 0:02:20]} 15. Bf3 {[%clk 0:02:16]}  Nxd4 {[%clk 0:02:18]} 16. Re1 {[%clk 0:02:11]}  Be6 {[%clk 0:02:16]} 17. Rc1 {[%clk 0:02:00]}  Bf7 {[%clk 0:02:15]} 18. Ne7+ {[%clk 0:01:54]}  Kh8 {[%clk 0:02:15]} 19. Bxb7 {[%clk 0:01:54]}  Rb8 {[%clk 0:02:15]} 20. Bd5 {[%clk 0:01:53]}  Re8 {[%clk 0:02:12]} 21. Bxf7 {[%clk 0:01:36]}  Rxe7 {[%clk 0:02:11]} 22. Bd5 {[%clk 0:01:32]}  Re5 {[%clk 0:01:56]} 23. Ne2 {[%clk 0:01:11]}  Nxe2+ {[%clk 0:01:25]} 24. Rxe2 {[%clk 0:01:11]}  Qg5 {[%clk 0:01:26]} 25. Rxe5 {[%clk 0:01:02]}  Bxe5 {[%clk 0:01:25]} 26. Rc2 {[%clk 0:00:51]}  Qh4 {[%clk 0:01:17]} 27. g3 {[%clk 0:00:49]}  Qg5 {[%clk 0:01:16]} 28. Re2 {[%clk 0:00:44]}  f4 {[%clk 0:01:16]} 29. Qe1 {[%clk 0:00:40]}  Rc8 {[%clk 0:01:10]} 30. Re4 {[%clk 0:00:39]}  h5 {[%clk 0:01:03]} 31. Qe2 {[%clk 0:00:35]}  Rf8 {[%clk 0:00:56]} 32. Qd3 {[%clk 0:00:20]}  h4 {[%clk 0:00:53]} 33. Qf3 {[%clk 0:00:15]}  hxg3 {[%clk 0:00:46]} 34. hxg3 {[%clk 0:00:15]}  Kg7 {[%clk 0:00:36]} 35. g4 {[%clk 0:00:16]}  Rh8 {[%clk 0:00:35]} 36. Kf1 {[%clk 0:00:13]}  Rh2 {[%clk 0:00:32]} 37. Ke2 {[%clk 0:00:12]}  Qd8 {[%clk 0:00:27]} 38. Qd3 {[%clk 0:00:08]}  Qa5 {[%clk 0:00:25]} 39. a3 {[%clk 0:00:07]}  Qc5 {[%clk 0:00:22]} 40. Qf3 {[%clk 0:00:02]}  Qxa3 {[%clk 0:00:22]} 41. Rxe5 {[%clk 0:00:02]}  dxe5 {[%clk 0:00:22]} 42. c5 {[%clk 0:00:01]}  Qxc5 {[%clk 0:00:21]} 43. Bc4 {[%clk 0:00:01]}  Qd4 {[%clk 0:00:19]} 44. Qb7+ {[%clk 0:00:01]}  Kh6 {[%clk 0:00:19]} 45. g5+ {[%clk 0:00:02]}  Kxg5 {[%clk 0:00:18]} 46. Qe7+ {[%clk 0:00:02]}  Kh6 {[%clk 0:00:09]} 47. Qf8+ {[%clk 0:00:01]}  Kg5 {[%clk 0:00:09]} 48. Qe7+ {[%clk 0:00:02]}  Kg4 {[%clk 0:00:09]} 49. Be6+ {[%clk 0:00:01]}  Kh5 {[%clk 0:00:08]} 50. Qh7+ {[%clk 0:00:01]}  Kg5 {[%clk 0:00:07]} 51. Qe7+ {[%clk 0:00:02]}  Kh6 {[%clk 0:00:07]} 52. Qf8+ {[%clk 0:00:03]}  Kh7 {[%clk 0:00:07]} 53. Qf7+ {[%clk 0:00:03]}  Kh6 {[%clk 0:00:07]} 54. Qf8+ {[%clk 0:00:03]}  Kh5 {[%clk 0:00:07]} 55. Qh8+ {[%clk 0:00:03]}  Kg5 {[%clk 0:00:06]} 56. Qd8+ {[%clk 0:00:03]}  Qxd8 {[%clk 0:00:06]} 0-1


[Site "https://www.chess.com"]

[Event "Titled Tuesday Blitz September 28 2021"]
[White "Vokhidov, Shamsiddin"]
[Black "Molina, Roberto Junio Brito"]
[WhiteFideId "14204223"]
[BlackFideId "2109450"]
[WhiteElo "2616"]
[BlackElo "2402"]
[Result "1-0"]
[Round "04"]
[TimeControl "180+1"]
[Date "2021.09.28"]
[WhiteClock "0:00:42"]
[BlackClock "0:00:38"]

1. e4 {[%clk 0:03:00]}  c6 {[%clk 0:02:59]} 2. d4 {[%clk 0:03:00]}  d5 {[%clk 0:03:00]} 3. e5 {[%clk 0:03:01]}  Bf5 {[%clk 0:03:00]} 4. h4 {[%clk 0:03:02]}  Qb6 {[%clk 0:02:59]} 5. a4 {[%clk 0:03:01]}  h6 {[%clk 0:02:54]} 6. a5 {[%clk 0:02:58]}  Qc7 {[%clk 0:02:53]} 7. g4 {[%clk 0:02:50]}  Bd7 {[%clk 0:02:53]} 8. h5 {[%clk 0:02:43]}  e6 {[%clk 0:02:52]} 9. c3 {[%clk 0:02:40]}  c5 {[%clk 0:02:51]} 10. Nf3 {[%clk 0:02:31]}  Nc6 {[%clk 0:02:47]} 11. a6 {[%clk 0:02:30]}  b6 {[%clk 0:02:46]} 12. Na3 {[%clk 0:02:30]}  c4 {[%clk 0:02:42]} 13. Nb5 {[%clk 0:02:28]}  Qc8 {[%clk 0:02:29]} 14. g5 {[%clk 0:02:16]}  Na5 {[%clk 0:02:28]} 15. Nd6+ {[%clk 0:01:48]}  Bxd6 {[%clk 0:02:27]} 16. exd6 {[%clk 0:01:49]}  Nb3 {[%clk 0:02:07]} 17. Ra3 {[%clk 0:01:48]}  Nxc1 {[%clk 0:02:01]} 18. Qxc1 {[%clk 0:01:49]}  Qc6 {[%clk 0:01:52]} 19. Qf4 {[%clk 0:01:44]}  hxg5 {[%clk 0:01:51]} 20. Nxg5 {[%clk 0:01:45]}  f6 {[%clk 0:01:38]} 21. Nf3 {[%clk 0:01:43]}  Nh6 {[%clk 0:01:35]} 22. Rg1 {[%clk 0:00:57]}  Nf5 {[%clk 0:01:09]} 23. Bh3 {[%clk 0:00:57]}  Rxh5 {[%clk 0:01:09]} 24. Bg4 {[%clk 0:00:54]}  Rh7 {[%clk 0:01:00]} 25. Bxf5 {[%clk 0:00:53]}  exf5 {[%clk 0:00:58]} 26. Qe3+ {[%clk 0:00:54]}  Kf8 {[%clk 0:00:54]} 27. Qe7+ {[%clk 0:00:55]}  Kg8 {[%clk 0:00:54]} 28. Qxf6 {[%clk 0:00:51]}  Re8+ {[%clk 0:00:53]} 29. Ne5 {[%clk 0:00:50]}  Be6 {[%clk 0:00:38]} 30. Nxc6 {[%clk 0:00:42]} 1-0


[Site "https://www.chess.com"]

[Event "Titled Tuesday Blitz September 28 2021"]
[White "Vrencian, Lehel"]
[Black "Visakh N R"]
[WhiteFideId "1230999"]
[BlackFideId "25012223"]
[WhiteElo "2058"]
[BlackElo "2454"]
[Result "1-0"]
[Round "04"]
[TimeControl "180+1"]
[Date "2021.09.28"]
[WhiteClock "0:00:25"]
[BlackClock "0:00:08"]

1. e4 {[%clk 0:03:00]}  c6 {[%clk 0:02:39]} 2. d4 {[%clk 0:02:59]}  d5 {[%clk 0:02:38]} 3. exd5 {[%clk 0:02:59]}  cxd5 {[%clk 0:02:38]} 4. c4 {[%clk 0:03:00]}  Nf6 {[%clk 0:02:38]} 5. Nc3 {[%clk 0:03:00]}  e6 {[%clk 0:02:35]} 6. Nf3 {[%clk 0:03:00]}  Bb4 {[%clk 0:02:34]} 7. Bd3 {[%clk 0:03:00]}  dxc4 {[%clk 0:02:34]} 8. Bxc4 {[%clk 0:03:01]}  O-O {[%clk 0:02:34]} 9. O-O {[%clk 0:03:01]}  b6 {[%clk 0:02:32]} 10. a3 {[%clk 0:02:58]}  Bxc3 {[%clk 0:02:30]} 11. bxc3 {[%clk 0:02:59]}  Bb7 {[%clk 0:02:31]} 12. Qd3 {[%clk 0:02:56]}  Qc7 {[%clk 0:02:29]} 13. Bb3 {[%clk 0:02:52]}  Nc6 {[%clk 0:01:53]} 14. Bg5 {[%clk 0:02:45]}  Ne7 {[%clk 0:01:45]} 15. Ne5 {[%clk 0:02:23]}  Ne4 {[%clk 0:01:32]} 16. Bxe7 {[%clk 0:02:11]}  Qxe7 {[%clk 0:01:31]} 17. Rfe1 {[%clk 0:02:05]}  Nf6 {[%clk 0:01:25]} 18. a4 {[%clk 0:01:54]}  Nd7 {[%clk 0:00:49]} 19. Bc2 {[%clk 0:01:48]}  g6 {[%clk 0:00:47]} 20. Ng4 {[%clk 0:01:44]}  Qg5 {[%clk 0:00:42]} 21. Qg3 {[%clk 0:01:38]}  h5 {[%clk 0:00:39]} 22. Ne3 {[%clk 0:01:31]}  Qxg3 {[%clk 0:00:38]} 23. hxg3 {[%clk 0:01:32]}  Rfc8 {[%clk 0:00:38]} 24. c4 {[%clk 0:01:26]}  Nb8 {[%clk 0:00:37]} 25. a5 {[%clk 0:01:20]}  bxa5 {[%clk 0:00:35]} 26. Reb1 {[%clk 0:01:13]}  Bc6 {[%clk 0:00:33]} 27. d5 {[%clk 0:01:04]}  exd5 {[%clk 0:00:31]} 28. cxd5 {[%clk 0:01:05]}  Bxd5 {[%clk 0:00:24]} 29. Bxg6 {[%clk 0:01:01]}  fxg6 {[%clk 0:00:21]} 30. Nxd5 {[%clk 0:01:01]}  Nc6 {[%clk 0:00:21]} 31. Rb7 {[%clk 0:00:53]}  Rab8 {[%clk 0:00:19]} 32. Nf6+ {[%clk 0:00:52]}  Kf8 {[%clk 0:00:17]} 33. Nd7+ {[%clk 0:00:53]}  Ke8 {[%clk 0:00:16]} 34. Nxb8 {[%clk 0:00:53]}  Rxb8 {[%clk 0:00:16]} 35. Rxb8+ {[%clk 0:00:53]}  Nxb8 {[%clk 0:00:17]} 36. Rxa5 {[%clk 0:00:54]}  Nc6 {[%clk 0:00:18]} 37. Rg5 {[%clk 0:00:50]}  Ne7 {[%clk 0:00:18]} 38. f4 {[%clk 0:00:48]}  Kd7 {[%clk 0:00:14]} 39. Kf2 {[%clk 0:00:46]}  Kc6 {[%clk 0:00:14]} 40. g4 {[%clk 0:00:44]}  hxg4 {[%clk 0:00:13]} 41. Rxg4 {[%clk 0:00:45]}  Kb5 {[%clk 0:00:10]} 42. Rg5+ {[%clk 0:00:44]}  Kb4 {[%clk 0:00:11]} 43. Re5 {[%clk 0:00:43]}  Nc6 {[%clk 0:00:11]} 44. Re6 {[%clk 0:00:43]}  Nd4 {[%clk 0:00:11]} 45. Rxg6 {[%clk 0:00:42]}  a5 {[%clk 0:00:12]} 46. Ra6 {[%clk 0:00:39]}  a4 {[%clk 0:00:12]} 47. g4 {[%clk 0:00:34]}  Kb5 {[%clk 0:00:11]} 48. Ra8 {[%clk 0:00:34]}  Nc6 {[%clk 0:00:10]} 49. g5 {[%clk 0:00:31]}  Na5 {[%clk 0:00:10]} 50. g6 {[%clk 0:00:31]}  a3 {[%clk 0:00:10]} 51. Rb8+ {[%clk 0:00:29]}  Ka4 {[%clk 0:00:09]} 52. Rb1 {[%clk 0:00:29]}  Nb3 {[%clk 0:00:08]} 53. g7 {[%clk 0:00:25]}  a2 {[%clk 0:00:08]} 54. Rg1 {[%clk 0:00:25]} 1-0


[Site "https://www.chess.com"]

[Event "Titled Tuesday Blitz September 28 2021"]
[White "Weetik, Vjacheslav"]
[Black "Terletsky, Oleg"]
[WhiteFideId "4153472"]
[BlackFideId "14116774"]
[WhiteElo "2469"]
[BlackElo "2086"]
[Result "1-0"]
[Round "04"]
[TimeControl "180+1"]
[Date "2021.09.28"]
[WhiteClock "0:02:02"]
[BlackClock "0:02:29"]

1. d4 {[%clk 0:02:49]}  Nf6 {[%clk 0:02:59]} 2. Bf4 {[%clk 0:02:48]}  g6 {[%clk 0:02:59]} 3. e3 {[%clk 0:02:46]}  Bg7 {[%clk 0:02:59]} 4. Nf3 {[%clk 0:02:46]}  O-O {[%clk 0:02:55]} 5. Be2 {[%clk 0:02:44]}  d5 {[%clk 0:02:55]} 6. Nbd2 {[%clk 0:02:43]}  c5 {[%clk 0:02:55]} 7. c3 {[%clk 0:02:42]}  Nc6 {[%clk 0:02:54]} 8. dxc5 {[%clk 0:02:29]}  Nd7 {[%clk 0:02:44]} 9. Nb3 {[%clk 0:02:23]}  e6 {[%clk 0:02:34]} 10. Bd6 {[%clk 0:02:20]}  Re8 {[%clk 0:02:34]} 11. O-O {[%clk 0:02:18]}  a5 {[%clk 0:02:34]} 12. a4 {[%clk 0:02:13]}  Nf6 {[%clk 0:02:29]} 13. Nbd2 {[%clk 0:02:02]} 1-0


[Site "https://www.chess.com"]

[Event "Titled Tuesday Blitz September 28 2021"]
[White "Yoo, Christopher Woojin"]
[Black "Suvorov, Alexander"]
[WhiteFideId "30909694"]
[BlackFideId "12977063"]
[WhiteElo "2105"]
[BlackElo "2221"]
[Result "1-0"]
[Round "04"]
[TimeControl "180+1"]
[Date "2021.09.28"]
[WhiteClock "0:00:06"]
[BlackClock "0:00:05"]

1. e4 {[%clk 0:03:00]}  g6 {[%clk 0:02:57]} 2. d4 {[%clk 0:02:59]}  Bg7 {[%clk 0:02:56]} 3. c3 {[%clk 0:02:59]}  d6 {[%clk 0:02:45]} 4. Bd3 {[%clk 0:02:59]}  Nf6 {[%clk 0:02:44]} 5. Nf3 {[%clk 0:02:56]}  O-O {[%clk 0:02:43]} 6. O-O {[%clk 0:02:56]}  Bg4 {[%clk 0:02:43]} 7. Nbd2 {[%clk 0:02:55]}  Nbd7 {[%clk 0:02:42]} 8. h3 {[%clk 0:02:55]}  Bxf3 {[%clk 0:02:42]} 9. Nxf3 {[%clk 0:02:56]}  e5 {[%clk 0:02:43]} 10. Re1 {[%clk 0:02:49]}  Qe7 {[%clk 0:02:36]} 11. a4 {[%clk 0:02:48]}  a5 {[%clk 0:02:34]} 12. Qb3 {[%clk 0:02:44]}  Nb6 {[%clk 0:02:33]} 13. dxe5 {[%clk 0:02:41]}  dxe5 {[%clk 0:02:34]} 14. Be3 {[%clk 0:02:41]}  Nfd7 {[%clk 0:02:27]} 15. Bf1 {[%clk 0:02:20]}  Rfe8 {[%clk 0:02:19]} 16. Qb5 {[%clk 0:02:06]}  c6 {[%clk 0:01:53]} 17. Qb3 {[%clk 0:02:03]}  Qd8 {[%clk 0:01:53]} 18. Rad1 {[%clk 0:01:54]}  Qc7 {[%clk 0:01:53]} 19. h4 {[%clk 0:01:47]}  Bf6 {[%clk 0:01:46]} 20. h5 {[%clk 0:01:32]}  gxh5 {[%clk 0:01:40]} 21. Ng5 {[%clk 0:01:20]}  Bxg5 {[%clk 0:01:29]} 22. Bxg5 {[%clk 0:01:20]}  Nc5 {[%clk 0:01:27]} 23. Qc2 {[%clk 0:01:17]}  Ne6 {[%clk 0:01:24]} 24. Bh4 {[%clk 0:01:13]}  Nf4 {[%clk 0:01:19]} 25. g3 {[%clk 0:01:05]}  Ng6 {[%clk 0:01:18]} 26. Bg5 {[%clk 0:01:05]}  Kg7 {[%clk 0:01:14]} 27. Qe2 {[%clk 0:01:04]}  f6 {[%clk 0:01:09]} 28. Be3 {[%clk 0:01:03]}  h4 {[%clk 0:01:10]} 29. gxh4 {[%clk 0:00:51]}  Rad8 {[%clk 0:00:50]} 30. Qg4 {[%clk 0:00:39]}  Kh8 {[%clk 0:00:43]} 31. Qf5 {[%clk 0:00:33]}  Rf8 {[%clk 0:00:39]} 32. Bc5 {[%clk 0:00:15]}  Rf7 {[%clk 0:00:32]} 33. h5 {[%clk 0:00:09]}  Nf4 {[%clk 0:00:30]} 34. Kh2 {[%clk 0:00:04]}  Nd7 {[%clk 0:00:26]} 35. Be3 {[%clk 0:00:04]}  Nf8 {[%clk 0:00:21]} 36. Bc4 {[%clk 0:00:03]}  Rxd1 {[%clk 0:00:10]} 37. Rxd1 {[%clk 0:00:03]}  Rg7 {[%clk 0:00:09]} 38. Qxf6 {[%clk 0:00:03]}  Qe7 {[%clk 0:00:10]} 39. Qxe7 {[%clk 0:00:04]}  Rxe7 {[%clk 0:00:11]} 40. Rd8 {[%clk 0:00:03]}  Kg7 {[%clk 0:00:06]} 41. h6+ {[%clk 0:00:03]}  Kxh6 {[%clk 0:00:06]} 42. Rxf8 {[%clk 0:00:04]}  Rg7 {[%clk 0:00:06]} 43. Bxf4+ {[%clk 0:00:03]}  exf4 {[%clk 0:00:07]} 44. Rxf4 {[%clk 0:00:03]}  Kg5 {[%clk 0:00:08]} 45. Kg3 {[%clk 0:00:03]}  h5 {[%clk 0:00:08]} 46. Rf5+ {[%clk 0:00:03]}  Kh6+ {[%clk 0:00:09]} 47. Kh3 {[%clk 0:00:04]}  Rg1 {[%clk 0:00:09]} 48. Be2 {[%clk 0:00:03]}  Re1 {[%clk 0:00:08]} 49. Rxh5+ {[%clk 0:00:03]}  Kg6 {[%clk 0:00:09]} 50. Bf3 {[%clk 0:00:04]}  Kf6 {[%clk 0:00:09]} 51. Rf5+ {[%clk 0:00:04]}  Ke6 {[%clk 0:00:09]} 52. Rxa5 {[%clk 0:00:05]}  Rf1 {[%clk 0:00:08]} 53. Kg2 {[%clk 0:00:05]}  Rb1 {[%clk 0:00:08]} 54. b4 {[%clk 0:00:05]}  Rc1 {[%clk 0:00:08]} 55. Rc5 {[%clk 0:00:05]}  Kd7 {[%clk 0:00:07]} 56. a5 {[%clk 0:00:05]}  Rc2 {[%clk 0:00:06]} 57. e5 {[%clk 0:00:06]}  Rd2 {[%clk 0:00:06]} 58. a6 {[%clk 0:00:06]}  bxa6 {[%clk 0:00:05]} 59. Rxc6 {[%clk 0:00:06]} 1-0


[Site "https://www.chess.com"]

[Event "Titled Tuesday Blitz September 28 2021"]
[White "ketster"]
[Black "Bluebaum, Matthias"]
[BlackFideId "24651516"]
[WhiteElo "2571"]
[BlackElo "2681"]
[Result "0-1"]
[Round "04"]
[TimeControl "180+1"]
[Date "2021.09.28"]
[WhiteClock "0:00:13"]
[BlackClock "0:02:11"]

1. d4 {[%clk 0:02:50]}  d5 {[%clk 0:02:59]} 2. c4 {[%clk 0:02:51]}  e6 {[%clk 0:02:59]} 3. Nc3 {[%clk 0:02:50]}  Nf6 {[%clk 0:02:59]} 4. cxd5 {[%clk 0:02:50]}  exd5 {[%clk 0:03:00]} 5. Bg5 {[%clk 0:02:49]}  c6 {[%clk 0:03:00]} 6. e3 {[%clk 0:02:50]}  h6 {[%clk 0:03:01]} 7. Bh4 {[%clk 0:02:50]}  Bf5 {[%clk 0:03:01]} 8. Qf3 {[%clk 0:02:48]}  Be6 {[%clk 0:03:02]} 9. Bxf6 {[%clk 0:02:48]}  Qxf6 {[%clk 0:03:03]} 10. Qxf6 {[%clk 0:02:47]}  gxf6 {[%clk 0:03:04]} 11. Nge2 {[%clk 0:02:44]}  a5 {[%clk 0:03:04]} 12. Ng3 {[%clk 0:02:40]}  a4 {[%clk 0:03:05]} 13. a3 {[%clk 0:02:38]}  Nd7 {[%clk 0:03:04]} 14. Bd3 {[%clk 0:02:30]}  b5 {[%clk 0:03:04]} 15. f3 {[%clk 0:02:28]}  Nb6 {[%clk 0:03:05]} 16. Nh5 {[%clk 0:02:20]}  Be7 {[%clk 0:03:02]} 17. Kf2 {[%clk 0:02:16]}  Kd7 {[%clk 0:03:02]} 18. Rac1 {[%clk 0:02:14]}  Rhb8 {[%clk 0:03:02]} 19. e4 {[%clk 0:02:01]}  Nc4 {[%clk 0:02:40]} 20. Rc2 {[%clk 0:01:52]}  b4 {[%clk 0:02:34]} 21. axb4 {[%clk 0:01:35]}  Rxb4 {[%clk 0:02:35]} 22. exd5 {[%clk 0:01:27]}  cxd5 {[%clk 0:02:35]} 23. Bxc4 {[%clk 0:01:11]}  Rxc4 {[%clk 0:02:33]} 24. Ra1 {[%clk 0:00:46]}  Rxd4 {[%clk 0:02:31]} 25. Nb5 {[%clk 0:00:40]}  Rb4 {[%clk 0:02:30]} 26. Nc7 {[%clk 0:00:26]}  Ra7 {[%clk 0:02:24]} 27. Rac1 {[%clk 0:00:21]}  Bd8 {[%clk 0:02:16]} 28. Nxe6 {[%clk 0:00:19]}  fxe6 {[%clk 0:02:17]} 29. g3 {[%clk 0:00:13]}  Rab7 {[%clk 0:02:17]} 30. Nf4 {[%clk 0:00:11]}  Rxb2 {[%clk 0:02:16]} 31. Nd3 {[%clk 0:00:11]}  Rxc2+ {[%clk 0:02:16]} 32. Rxc2 {[%clk 0:00:12]}  Kd6 {[%clk 0:02:16]} 33. Ke2 {[%clk 0:00:11]}  Ra7 {[%clk 0:02:16]} 34. Ra2 {[%clk 0:00:12]}  a3 {[%clk 0:02:12]} 35. Nb4 {[%clk 0:00:12]}  Be7 {[%clk 0:02:11]} 36. Nc2 {[%clk 0:00:12]}  Kd7 {[%clk 0:02:11]} 37. Nd4 {[%clk 0:00:13]}  e5 {[%clk 0:02:11]} 38. Nb5 {[%clk 0:00:13]}  Ra5 {[%clk 0:02:11]} 39. Nc3 {[%clk 0:00:12]}  d4 {[%clk 0:02:12]} 40. Ne4 {[%clk 0:00:12]}  f5 {[%clk 0:02:12]} 41. Nd2 {[%clk 0:00:13]}  Ke6 {[%clk 0:02:12]} 42. Kd3 {[%clk 0:00:13]}  Kd5 {[%clk 0:02:12]} 43. Nc4 {[%clk 0:00:14]}  Rb5 {[%clk 0:02:11]} 44. Rc2 {[%clk 0:00:13]}  Rb3+ {[%clk 0:02:11]} 45. Ke2 {[%clk 0:00:13]}  d3+ {[%clk 0:02:11]} 0-1


[Site "https://www.chess.com"]